Cogmind - Beta 11.1 @@@ ROGUE MODE // 2022.05.21 @ 19:38:25 Player: ChromeKnight Result: Destroyed by H-66 Slayer with Gauss Rifle Performance ------------- Evolutions (5) 2500 Regions Visited (12) 2400 Robots Destroyed (103) 515 Value Destroyed (3526) 3526 Prototype IDs (6) 120 Alien Tech Used (0) 0 Bonus (94) 94 TOTAL SCORE: 9155 Bonus ------- Follower Combat Kills 94 Cogmind --------- Core Integrity 0/1000 Matter 146/300 Energy 18/100 System Corruption 24% Temperature Cool (0) Movement Core (50) Location -5/Factory Parts ------- > --- POWER (1) -------- (None) > --- PROPULSION (2) --- (None) > --- UTILITY (12) ----- Enhanced Optical Array Advanced Signal Interpreter Advanced Targeting Computer Advanced Targeting Computer Advanced Targeting Computer Improved Target Analyzer Improved Target Analyzer Improved Power Shielding > --- WEAPON (2) ------- (None) > --- INVENTORY (5) ---- Core Analyzer Weapon Cycler Advanced ECM Suite Mobile Refinery Mk. CCLXVII Drone Bay (2/2) Peak State ------------ > --- POWER ------------ Neutrino Core > --- PROPULSION ------- Improved Carbon-fiber Leg Improved Carbon-fiber Leg > --- UTILITY ---------- Medium Storage Unit Weight Redist. System Enhanced Optical Array Improved Sensor Array Advanced Signal Interpreter Advanced Targeting Computer Advanced Targeting Computer Improved Target Analyzer Recoil Nullifier Transmission Jammer Hardened Light Armor Plating Makeshift Armor Plating > --- WEAPON ----------- Flak Gun Coil Gun > --- INVENTORY -------- Titanium Leg High-capacity Matter Pod Core Analyzer Weapon Cycler Advanced ECM Suite Improved Power Shielding Improved Utility Shielding Mobile Refinery Mk. CCLXVII Drone Bay Hypervelocity Gauss Rifle [Rating: 69] Favorites ----------- Power Light Nuclear Core Engine Deuterium Engine Power Core Light Nuclear Core Propulsion Improved Carbon-fiber Leg Treads Light Treads Leg Improved Carbon-fiber Leg Wheel Wheel Utility Advanced Targeting Computer Device Weight Redist. System Storage Medium Storage Unit Processor Advanced Targeting Computer Protection Hardened Light Armor Plating Weapon Flak Gun Energy Gun Particle Gun Ballistic Gun Flak Gun Ballistic Cannon Enhanced Gauss Cannon Build | -11 -10 -10 -10 -9 -8 -7 -7 -7 -7 -6 -6 -5 ------- Run | Scr Mat Min Exi Min Mat Fac Low Low Zio Pro Fac Fac Slots Evolved 10 | . . . . . 4 2 . . . . 2 2 Power . | . . . . . . . . . . . . . Propulsion . | . . . . . . . . . . . . . Utility 10 | . . . . . 4 2 . . . . 2 2 Weapon . | . . . . . . . . . . . . . Parts Attached 124 | 5 17 4 . . 29 16 3 6 10 . 7 27 Power 22 | 1 5 1 . . 4 2 1 . 1 . . 7 Engine 9 | 1 5 . . . 3 . . . . . . . Core 13 | . . 1 . . 1 2 1 . 1 . . 7 Reactor . | . . . . . . . . . . . . . Propulsion 30 | 2 5 3 . . 7 2 2 2 3 . 1 3 Treads 3 | . 3 . . . . . . . . . . . Leg 25 | 2 2 3 . . 7 2 2 2 3 . 1 1 Wheel 2 | . . . . . . . . . . . . 2 Hover . | . . . . . . . . . . . . . Flight . | . . . . . . . . . . . . . Utility 41 | . 4 . . . 9 9 . 1 4 . 5 9 Device 15 | . . . . . 3 5 . . 2 . 2 3 Storage 2 | . 2 . . . . . . . . . . . Processor 13 | . 2 . . . 4 1 . . . . 3 3 Hackware . | . . . . . . . . . . . . . Protection 11 | . . . . . 2 3 . 1 2 . . 3 Artifact . | . . . . . . . . . . . . . Weapon 31 | 2 3 . . . 9 3 . 3 2 . 1 8 Energy Gun 4 | . . . . . . . . 2 . . . 2 Energy Cannon . | . . . . . . . . . . . . . Ballistic Gun 26 | 2 3 . . . 9 3 . 1 2 . 1 5 Ballistic Cannon 1 | . . . . . . . . . . . . 1 Launcher . | . . . . . . . . . . . . . Special Weapon . | . . . . . . . . . . . . . Impact Weapon . | . . . . . . . . . . . . . Slashing Weapon . | . . . . . . . . . . . . . Piercing Weapon . | . . . . . . . . . . . . . Special Melee Weapon . | . . . . . . . . . . . . . Unidentified Prototypes 6 | . . . . . . 3 . . 1 . . 2 Corrupted Parts 1 | . . . . . . . . . 1 . . . System Corruption 1 | . . . . . . . . . 1 . . . Parts Lost 37 | . . 1 . . 2 4 3 9 . . 1 17 Power 7 | . . 1 . . 1 1 1 1 . . . 2 Propulsion 7 | . . . . . . . 1 2 . . . 4 Utility 10 | . . . . . . 2 1 2 . . 1 4 Weapon 13 | . . . . . 1 1 . 4 . . . 7 Highest Loss Streak 7 | . . 1 . . 1 4 2 5 . . 1 7 To Critical Strikes . | . . . . . . . . . . . . . Average Slot Usage (%) 93 | . 95 99 100 100 97 99 95 85 83 100 99 87 Engine 2 | . 13 . . . 6 3 . . . . . . Core 4 | . . 13 14 14 2 3 5 4 1 7 6 4 Treads 1 | . 20 . . . . . . . . . . . Leg 13 | . 7 28 28 28 17 15 15 14 15 15 12 7 Device 14 | . . . . . 12 16 19 12 11 15 19 21 Storage 7 | . 12 14 14 14 9 7 7 7 7 7 6 5 Processor 22 | . 12 14 14 14 24 23 23 23 23 23 25 28 Protection 7 | . . . . . 5 12 7 8 11 15 13 7 Energy Gun 1 | . . . . . . . . 9 5 . . . Ballistic Gun 13 | . 27 28 28 28 18 15 15 2 6 15 13 7 Naked Turns . | . . . . . . . . . . . . . Heaviest Build 41 | 5 17 17 17 17 32 34 28 29 39 39 40 41 Greatest Support 42 | 20 40 20 20 20 28 39 39 39 42 42 42 42 Greatest Overweight (x) 9 | . 1 . . . 3 1 . 1 . . 1 9 Average Overweight (x) . | . . . . . . . . . . . . . Largest Inventory Capacity 10 | 5 10 10 10 10 10 10 10 10 10 10 10 10 Average Capacity 9 | 5 9 10 10 10 10 10 10 10 10 10 10 9 Most Carried 10 | 3 10 10 10 10 10 10 9 10 10 10 10 10 Average Carried 9 | 1 8 10 10 10 9 9 8 9 9 10 9 9 Final Capacity 10 | 5 10 10 10 10 10 10 10 10 10 10 10 5 Final Carried 10 | 3 10 10 10 10 10 9 9 9 10 10 10 5 Class Distribution -------------------- 46% | Mutant 23% | Derelict-Mutant 19% | Scavenger-Mutant 5% | Derelict-Skirmisher 3% | Scavenger-Skirmisher Dominant Class ---------------- Mutant | -10/Materials Mutant | -10/Mines Scavenger-Mutant | -10/Exiles Scavenger-Mutant | -9/Mines Mutant | -8/Materials Mutant | -7/Factory Mutant | -7/Lower Caves Scavenger-Mutant | -7/Lower Caves Derelict-Mutant | -7/Zion Derelict-Mutant | -6/Proximity Caves Derelict-Mutant | -6/Factory Derelict-Skirmisher | -5/Factory Resources | -11 -10 -10 -10 -9 -8 -7 -7 -7 -7 -6 -6 -5 ----------- Run | Scr Mat Min Exi Min Mat Fac Low Low Zio Pro Fac Fac Matter Collected 3165 | 190 368 65 . . 834 489 232 122 100 8 197 560 Remotely . | . . . . . . . . . . . . . Salvage Created 3928 | . 610 133 . . 1075 619 211 315 . . 248 717 Parts 223 | . 31 7 . . 68 34 12 16 . . 18 37 Haulers Intercepted 6 | . . . . . 4 2 . . . . . . Recyclers Shooed 4 | . 2 . . . . 2 . . . . . . Parts Field Recycled . | . . . . . . . . . . . . . Retrieved Matter . | . . . . . . . . . . . . . Parts Self-Destructed 25 | . . . . . . . 10 14 1 . . . Prevented 1 | . . . . . . . . . 1 . . . Kills | -11 -10 -10 -10 -9 -8 -7 -7 -7 -7 -6 -6 -5 ------- Run | Scr Mat Min Exi Min Mat Fac Low Low Zio Pro Fac Fac Combat Hostiles Destroyed 80 | . 15 3 . . 19 9 6 8 . . 5 15 Guns 72 | . 15 3 . . 19 9 6 8 . . 2 10 Cannons 4 | . . . . . . . . . . . . 4 AOE 3 | . . . . . . . . . . . 3 . Classes Destroyed 13 | . 4 . . . 7 1 . . . . . 1 Worker 6 | . . . . . 2 1 . . . . 1 2 Builder 1 | . . . . . . . . . . . . 1 Hauler 6 | . . . . . 4 2 . . . . . . Recycler 6 | . 1 . . . 2 2 . . . . . 1 Operator 2 | . 1 . . . . . . . . . 1 . Watcher 2 | . . . . . 1 1 . . . . . . Swarmer 23 | . 3 . . . 7 4 . 4 . . . 5 Grunt 31 | . 12 3 . . 3 1 4 4 . . 3 1 Duelist 2 | . . . . . 1 1 . . . . . . Sentry 7 | . . . . . 6 . . . . . 1 . Specialist 1 | . . . . . 1 . . . . . . . Hunter 4 | . . . . . 1 . 1 . . . . 2 Programmer 12 | . . . . . . 3 1 . . . 1 7 Best Kill Streak 5 | . 3 2 . . 4 5 4 4 . . 3 5 Combat Bots Only 5 | . 3 2 . . 4 3 4 4 . . 3 5 Max Kills in Single Turn 3 | . 1 1 . . 1 1 1 1 . . 3 2 Gunslinging 1 | . . . . . . . . . . . . 1 Exploded 3 | . . . . . . . . . . . 3 . Melee . | . . . . . . . . . . . . . Uniques/NPCs Destroyed . | . . . . . . . . . . . . . Combat | -11 -10 -10 -10 -9 -8 -7 -7 -7 -7 -6 -6 -5 -------- Run | Scr Mat Min Exi Min Mat Fac Low Low Zio Pro Fac Fac Damage Taken 7351 | . 575 245 . . 791 1041 454 784 . . 504 2957 Core 1755 | . 116 80 . . 108 116 83 165 . . 82 1005 Absorbed by Shields 20 | . . . . . 20 . . . . . . . Redirected to Shielding 315 | . . . . . . 151 . 61 . . . 103 Regen/Repaired (Parts) 661 | . 157 . . . 84 . . . 420 . . . Core Remaining (%) 67 | 100 . . . 21 80 . . . . 48 90 . Volleys Fired 327 | . 69 16 . . 68 41 23 41 . . 16 53 Largest 2 | . 2 2 . . 2 2 2 2 . . 2 2 Hottest 130 | . 40 40 . . 46 56 56 130 . . 58 85 Shots Fired 609 | . 138 32 . . 134 83 45 49 . . 34 94 Gun 576 | . 138 32 . . 134 83 45 49 . . 34 61 Cannon 33 | . . . . . . . . . . . . 33 Launcher . | . . . . . . . . . . . . . Special . | . . . . . . . . . . . . . Kinetic 579 | . 138 32 . . 134 83 45 21 . . 34 92 Thermal 29 | . . . . . . . . 28 . . . 1 Explosive . | . . . . . . . . . . . . . Electromagnetic 1 | . . . . . . . . . . . . 1 Robot Hit Streak 34 | . 20 16 . . 22 19 34 15 . . 7 22 Robot Miss Streak 6 | . 2 1 . . 3 2 4 4 . . 6 4 Penetration Max 1 | . . . . . . . . . . . . 1 Secondary Targets 6 | . . . . . . 3 . 1 . . . 2 Max Gunslinging Chain 1 | . . . . . . 1 . 1 . . . 1 Shots Hit Robots 474 | . 106 29 . . 98 70 35 37 . . 21 78 Core Hits 255 | . 41 13 . . 54 29 30 22 . . 19 47 Critical Kills 5 | . . . . . . . 1 . . . . 4 Critical Parts Destroyed 6 | . 2 . . . . . . . . . . 4 Critical Strikes 16 | . 2 . . . . . 1 . . . . 13 Destroy 11 | . 2 . . . . . 1 . . . . 8 Blast 5 | . . . . . . . . . . . . 5 Melee Attacks . | . . . . . . . . . . . . . Impact . | . . . . . . . . . . . . . Slashing . | . . . . . . . . . . . . . Piercing . | . . . . . . . . . . . . . Sneak Attacks . | . . . . . . . . . . . . . Combat Hostiles . | . . . . . . . . . . . . . Follow-up Attacks . | . . . . . . . . . . . . . Damage Inflicted 7958 | . 876 233 . . 1223 1457 777 626 . . 989 1777 Guns 6645 | . 876 233 . . 1223 1457 777 626 . . 490 963 Cannons 799 | . . . . . . . . . . . . 799 Explosions 499 | . . . . . . . . . . . 499 . Melee . | . . . . . . . . . . . . . Ramming 15 | . . . . . . . . . . . . 15 Kinetic 7160 | . 876 233 . . 1223 1457 777 370 . . 490 1734 Thermal 778 | . . . . . . . . 256 . . 499 23 Explosive . | . . . . . . . . . . . . . Electromagnetic 5 | . . . . . . . . . . . . 5 Impact . | . . . . . . . . . . . . . Slashing . | . . . . . . . . . . . . . Piercing . | . . . . . . . . . . . . . Highest Corruption 24 | . . . . . . 2 . . 1 1 2 24 Average Corruption 6 | . . . . . . 1 . . 1 1 1 14 Corruption Purged 2 | . . . . . . 2 . . . . . . Corruption Blocked . | . . . . . . . . . . . . . Effects 72 | . . . . . . 5 . . . 3 13 51 Message Errors 19 | . . . . . . . . . . . 4 15 Matter Fused 15 | . . . . . . 3 . . . 1 3 8 Heat Flow Errors 8 | . . . . . . . . . . 2 2 4 Energy Discharges 11 | . . . . . . . . . . . 2 9 Parts Rejected 1 | . . . . . . . . . . . . 1 Data Loss (minor) 9 | . . . . . . 1 . . . . . 8 Data Loss (major) 1 | . . . . . . . . . . . . 1 Misfires 4 | . . . . . . 1 . . . . 2 1 Misdirections 1 | . . . . . . . . . . . . 1 Weapon Failures 3 | . . . . . . . . . . . . 3 Overload Shots . | . . . . . . . . . . . . . Overflow Damage 74 | . . . . . . . . . . . 72 2 Projectiles 2 | . . . . . . . . . . . . 2 Explosions 72 | . . . . . . . . . . . 72 . Melee . | . . . . . . . . . . . . . Knockbacks 10 | . . . . . . . . . . . . 10 Impact . | . . . . . . . . . . . . . Kinetic 9 | . . . . . . . . . . . . 9 Secondary 1 | . . . . . . . . . . . . 1 Self-Inflicted Damage 2 | . . . . . . . . . . . . 2 Shots . | . . . . . . . . . . . . . Rammed 9 | . . . . . . . . . . . . 9 Targets Rammed 10 | . . . . . . . . . . . . 10 Kicked 1 | . . . . . . . . . . . . 1 Crushed . | . . . . . . . . . . . . . Highest Temperature 298 | . 27 41 . . 23 46 24 298 . 239 219 229 Average Temperature 55 | . 9 13 . . 5 12 6 128 . 118 67 62 Received Heat Transfer 1164 | . 282 138 . . 225 57 150 225 . . 87 . Siege Activations . | . . . . . . . . . . . . . Robots Corrupted . | . . . . . . . . . . . . . Combat Hostiles . | . . . . . . . . . . . . . Parts Fried . | . . . . . . . . . . . . . Impact Corruptions . | . . . . . . . . . . . . . Robots Melted . | . . . . . . . . . . . . . Combat Hostiles . | . . . . . . . . . . . . . Parts Melted 8 | . . . . . . . . 3 . . . 5 Heat Transferred 979 | . . . . . . . . 629 . . 300 50 Parts Sabotaged . | . . . . . . . . . . . . . Parts Stolen . | . . . . . . . . . . . . . Parts Stripped . | . . . . . . . . . . . . . Power Chain Reactions . | . . . . . . . . . . . . . Missiles Intercepted . | . . . . . . . . . . . . . Alert | -11 -10 -10 -10 -9 -8 -7 -7 -7 -7 -6 -6 -5 ------- Run | Scr Mat Min Exi Min Mat Fac Low Low Zio Pro Fac Fac Peak Influence 365 | . 288 132 . . 365 170 . . . . 249 198 Initial 121 | . . 112 . . . 114 . . . . . 121 Average 90 | . 103 96 . . 196 69 . . . . 31 71 Maximum Alert Level 1 | . 1 . . . 1 . . . . . 1 . Low Security (%) 87 | 100 85 100 . 100 45 100 . . . . 91 100 Level 1 12 | . 14 . . . 54 . . . . . 8 . Level 2 . | . . . . . . . . . . . . . Level 3 . | . . . . . . . . . . . . . Level 4 . | . . . . . . . . . . . . . Level 5 . | . . . . . . . . . . . . . High Security . | . . . . . . . . . . . . . Max Security . | . . . . . . . . . . . . . Squads Dispatched 18 | . 4 . . . 1 2 . . . . 6 5 Investigation 2 | . 1 . . . . . . . . . 1 . Extermination 7 | . . . . . . 2 . . . . 2 3 Reinforcement 9 | . 3 . . . 1 . . . . . 3 2 Assault . | . . . . . . . . . . . . . Garrison . | . . . . . . . . . . . . . Intercept . | . . . . . . . . . . . . . Searches Triggered . | . . . . . . . . . . . . . Construction Impeded . | . . . . . . . . . . . . . Haulers Reinforced . | . . . . . . . . . . . . . Active Scanning Responses . | . . . . . . . . . . . . . Cargo Convoy Interrupts . | . . . . . . . . . . . . . Stealth | -11 -10 -10 -10 -9 -8 -7 -7 -7 -7 -6 -6 -5 --------- Run | Scr Mat Min Exi Min Mat Fac Low Low Zio Pro Fac Fac Distress Signals 10 | . 4 . . . 4 . . . . . 1 1 Communications Jammed 15 | . . . . . . . . . . . . 15 Distress Signals 15 | . . . . . . . . . . . . 15 Times Spotted 136 | . 27 4 . 3 31 14 8 8 . . 11 30 Peak Tracking Total 7 | . 5 2 . 3 4 4 5 4 . . 3 7 Tactical Retreats 10 | . 1 . . . 2 1 2 . . . 2 2 Traps | -11 -10 -10 -10 -9 -8 -7 -7 -7 -7 -6 -6 -5 ------- Run | Scr Mat Min Exi Min Mat Fac Low Low Zio Pro Fac Fac Traps Triggered 8 | . 1 . . . . 2 . . . . 3 2 Indirectly . | . . . . . . . . . . . . . Trap Hack Attempts . | . . . . . . . . . . . . . Triggered . | . . . . . . . . . . . . . Disarmed . | . . . . . . . . . . . . . Reprogrammed . | . . . . . . . . . . . . . Reused . | . . . . . . . . . . . . . Traps Extracted . | . . . . . . . . . . . . . Installed . | . . . . . . . . . . . . . Triggered . | . . . . . . . . . . . . . Most Traps Carried 2 | . . . . . . . . 2 2 . . . Machines | -11 -10 -10 -10 -9 -8 -7 -7 -7 -7 -6 -6 -5 ---------- Run | Scr Mat Min Exi Min Mat Fac Low Low Zio Pro Fac Fac Machines Disabled 7 | . . . . . 1 . . . . . 6 . Max in Single Turn 6 | . . . . . 1 . . . . . 6 . Garrison Access 1 | . . . . . 1 . . . . . . . Machines Sabotaged . | . . . . . . . . . . . . . Garrisons Compromised . | . . . . . . . . . . . . . Overloaded Fab Kills . | . . . . . . . . . . . . . Hacking | -11 -10 -10 -10 -9 -8 -7 -7 -7 -7 -6 -6 -5 --------- Run | Scr Mat Min Exi Min Mat Fac Low Low Zio Pro Fac Fac Machines Accessed 13 | . 4 . . . 3 1 . 1 . . 4 . Terminals 7 | . 3 . . . 1 . . . . . 3 . Fabricators 1 | . . . . . . 1 . . . . . . Repair Stations 2 | . 1 . . . 1 . . . . . . . Recycling Units . | . . . . . . . . . . . . . Scanalyzers . | . . . . . . . . . . . . . Garrison Access 2 | . . . . . 1 . . . . . 1 . Total Hacks 37 | . 18 . . . 8 2 . 1 . . 8 . Successful 18 | . 11 . . . 4 . . 1 . . 2 . Failed 19 | . 7 . . . 4 2 . . . . 6 . Catastrophic 2 | . . . . . . 1 . . . . 1 . Database Lockouts . | . . . . . . . . . . . . . Manual 14 | . 10 . . . . 2 . . . . 2 . Terminals 19 | . 12 . . . 2 . . . . . 5 . Fabricators 2 | . . . . . . 2 . . . . . . Repair Stations 8 | . 6 . . . 2 . . . . . . . Recycling Units . | . . . . . . . . . . . . . Scanalyzers . | . . . . . . . . . . . . . Garrison Access 7 | . . . . . 4 . . . . . 3 . Terminal Hacks 5 | . 1 . . . 1 . . 1 . . 2 . Robot Analysis 1 | . 1 . . . . . . . . . . . Open Door 1 | . . . . . . . . 1 . . . . Branch Access Points 1 | . . . . . 1 . . . . . . . Zone Layout 2 | . . . . . . . . . . . 2 . Fabricator Hacks . | . . . . . . . . . . . . . Repair Station Hacks 8 | . 6 . . . 2 . . . . . . . Scan Component 4 | . 3 . . . 1 . . . . . . . Repair 4 | . 3 . . . 1 . . . . . . . Recycling Unit Hacks . | . . . . . . . . . . . . . Scanalyzer . | . . . . . . . . . . . . . Garrison Access Hacks 1 | . . . . . 1 . . . . . . . Seal Access 1 | . . . . . 1 . . . . . . . Unauthorized Hacks 4 | . 4 . . . . . . . . . . . Terminals 4 | . 4 . . . . . . . . . . . Track 2 | . 2 . . . . . . . . . . . Botnet 2 | . 2 . . . . . . . . . . . Fabricators . | . . . . . . . . . . . . . Repair Stations . | . . . . . . . . . . . . . Recycling Units . | . . . . . . . . . . . . . Scanalyzers . | . . . . . . . . . . . . . Garrison Access . | . . . . . . . . . . . . . Data Cores Recovered . | . . . . . . . . . . . . . Used . | . . . . . . . . . . . . . Hacking Detections 9 | . 4 . . . 2 1 . . . . 2 . Full Trace Events 2 | . 1 . . . . . . . . . 1 . Feedback Events . | . . . . . . . . . . . . . Feedback Blocked . | . . . . . . . . . . . . . Robot Schematics Acquired . | . . . . . . . . . . . . . Robots Built . | . . . . . . . . . . . . . Authchips . | . . . . . . . . . . . . . Time . | . . . . . . . . . . . . . Total Robot Build Rating . | . . . . . . . . . . . . . Part Schematics Acquired . | . . . . . . . . . . . . . Parts Built . | . . . . . . . . . . . . . Authchips . | . . . . . . . . . . . . . Time . | . . . . . . . . . . . . . Total Part Build Rating . | . . . . . . . . . . . . . Parts Repaired 4 | . 3 . . . 1 . . . . . . . Time 116 | . 78 . . . 38 . . . . . . . Parts Recycled . | . . . . . . . . . . . . . Recycled Matter . | . . . . . . . . . . . . . Retrieved Matter . | . . . . . . . . . . . . . Retrieved Components . | . . . . . . . . . . . . . Parts Scanalyzed . | . . . . . . . . . . . . . Part Schematics Acquired . | . . . . . . . . . . . . . Parts Damaged . | . . . . . . . . . . . . . Bothacking | -11 -10 -10 -10 -9 -8 -7 -7 -7 -7 -6 -6 -5 ------------ Run | Scr Mat Min Exi Min Mat Fac Low Low Zio Pro Fac Fac Used RIF Installer . | . . . . . . . . . . . . . Robots Hacked . | . . . . . . . . . . . . . Non-combat . | . . . . . . . . . . . . . Combat . | . . . . . . . . . . . . . Robot Hacks Applied . | . . . . . . . . . . . . . Relay Couplers Released 3 | . . . . . . 3 . . . . . . Programmers 3 | . . . . . . 3 . . . . . . Fabnet Peak Effective % . | . . . . . . . . . . . . . Robots Rewired 1 | . . . . . . . . . . . 1 . Allies Hacked . | . . . . . . . . . . . . . Hacks Repelled . | . . . . . . . . . . . . . Allies | -11 -10 -10 -10 -9 -8 -7 -7 -7 -7 -6 -6 -5 -------- Run | Scr Mat Min Exi Min Mat Fac Low Low Zio Pro Fac Fac Total Allies 5 | . . . . . . . . . 4 . 1 . Largest Group 4 | . . . . . . . . . 4 4 4 . Highest-Rated Group 101 | . . . . . . . . . 101 101 101 . Highest-Rated Ally 41 | . . . . . . . . . 31 31 41 . Total Orders . | . . . . . . . . . . . . . Ally Attacks 20 | . . . . . . . . . . . 20 . Total Damage 351 | . . . . . . . . . . . 351 . Kills 2 | . . . . . . . . . . . 2 . Allies Corrupted . | . . . . . . . . . . . . . Allies Melted . | . . . . . . . . . . . . . Intel | -11 -10 -10 -10 -9 -8 -7 -7 -7 -7 -6 -6 -5 ------- Run | Scr Mat Min Exi Min Mat Fac Low Low Zio Pro Fac Fac Robot Analysis Total 1 | . 1 . . . . . . . . . . . Derelict Logs Recovered 8 | . . 1 . . . . 1 3 2 1 . . Drone Launches . | . . . . . . . . . . . . . Drone Recoveries . | . . . . . . . . . . . . . Exploration | -11 -10 -10 -10 -9 -8 -7 -7 -7 -7 -6 -6 -5 ------------- Run | Scr Mat Min Exi Min Mat Fac Low Low Zio Pro Fac Fac Turns Passed 13014 | 53 1143 667 54 91 1318 1392 1861 1046 1414 553 1343 2079 Spaces Moved 7368 | 37 458 450 46 76 576 935 779 585 1059 452 764 1151 Core 26 | 3 . . . . . . . . . . . 23 Treads 299 | . 299 . . . . . . . . . . . Legs 6949 | 34 159 450 46 76 576 935 779 585 1059 452 764 1034 Wheels 94 | . . . . . . . . . . . . 94 Hover . | . . . . . . . . . . . . . Flight . | . . . . . . . . . . . . . Fastest Speed 50 | 50 120 120 120 120 105 105 105 120 120 120 120 50 Average Speed 126 | 114 146 120 120 120 163 113 115 120 120 120 120 138 Slowest Speed 500 | 120 190 120 120 120 330 185 120 190 120 120 190 500 Overloaded Moves . | . . . . . . . . . . . . . Propulsion Burnouts . | . . . . . . . . . . . . . Robots Hopped . | . . . . . . . . . . . . . Cave-ins Triggered . | . . . . . . . . . . . . . Exploration Rate (%) 46 | 4 84 81 10 29 44 19 77 65 80 53 22 34 Regions Visited 12 Branch Regions 7 Pre-discovered Areas 4 | . . 1 . . . . . . 2 1 . . Known Exits Taken 7 | . . . . . 1 1 1 1 1 1 1 . Unknown Exits Taken 5 | 1 1 1 1 1 . . . . . . . . Scrap Searched 8 | . . 1 . . . . 1 1 4 1 . . Spaces Dug . | . . . . . . . . . . . . . Terrain Destroyed 65 | . . . . . . . . . . . 55 10 Melee . | . . . . . . . . . . . . . Projectile 10 | . . . . . . . . . . . . 10 AOE 55 | . . . . . . . . . . . 55 . Terrain Rammed . | . . . . . . . . . . . . . Walls Destroyed . | . . . . . . . . . . . . . Machines Disabled . | . . . . . . . . . . . . . Actions | -11 -10 -10 -10 -9 -8 -7 -7 -7 -7 -6 -6 -5 --------- Run | Scr Mat Min Exi Min Mat Fac Low Low Zio Pro Fac Fac Total 10497 | 45 829 552 45 76 836 1201 1696 878 1205 462 1155 1517 Wait 2527 | 1 252 80 . 1 125 182 892 244 123 11 359 257 Move 7356 | 36 457 449 45 75 575 934 778 584 1058 451 763 1151 Hop . | . . . . . . . . . . . . . Pick Up 59 | 3 17 . . . 14 11 . 3 5 . 2 4 Fast Attach 58 | 5 6 1 . . 8 7 1 3 6 . 4 17 Attach 25 | . 1 . . . 7 4 1 3 . . 2 7 Detach 6 | . . . . . 1 2 . . 1 . . 2 Swap 41 | . 10 3 . . 14 5 1 . 4 . 1 3 Drop 81 | . 17 3 . . 24 15 . . 8 . 1 13 Fire 327 | . 69 16 . . 68 41 23 41 . . 16 53 Melee . | . . . . . . . . . . . . . Ram 9 | . . . . . . . . . . . . 9 Kick 1 | . . . . . . . . . . . . 1 Crush . | . . . . . . . . . . . . . Escape Stasis . | . . . . . . . . . . . . . Rewire 7 | . . . . . . . . . . . 7 . Trap . | . . . . . . . . . . . . . Miscellaneous . | . . . . . . . . . . . . . Route ------- -11/Scrapyard -10/Materials (discovered 3 exits: [*Mat x2] / [*Min]) -10/Mines (discovered 2 exits: [*Mat] / [*Exi]) -10/Exiles -9/Mines -8/Materials -7/Factory -7/Lower Caves -7/Lower Caves -7/Zion -6/Proximity Caves -6/Factory (discovered 4 exits: *Fac x2 / *Low x2) -5/Factory (discovered 2 exits: *Fac / Ext) History --------- Turn | Location | Event 2 | -11/Scrapyard | Met Revision 17 4 | -11/Scrapyard | Discovered new exit (range 15) 54 | -11/Scrapyard | Entered Materials 305 | -10/Materials | Build established: Mutant 596 | -10/Materials | Discovered new exit (range 10) 826 | -10/Materials | Repaired Lgt. Assault Rifle 853 | -10/Materials | Repaired Ion Engine 881 | -10/Materials | Repaired Lgt. Treads 908 | -10/Materials | Discovered new exit (range 6) 1175 | -10/Materials | Discovered new exit (range 7) 1197 | -10/Materials | Entered Mines 1198 | -10/Mines | Assembled infested the area 1200 | -10/Mines | Core integrity fell below 50% 1232 | -10/Mines | Learned location of Mines (-9) 1687 | -10/Mines | Discovered new exit (range 12) 1703 | -10/Mines | Deemed a non-threat by the Exiles lab entrance 1703 | -10/Mines | Discovered new exit (range 5) 1864 | -10/Mines | Entered Exiles 1892 | -10/Exiles | Met 8R-AWN 1903 | -10/Exiles | Discovered new exit (range 15) 1918 | -10/Exiles | Entered Mines 1939 | -9/Mines | Build established: Scavenger-Mutant 1994 | -9/Mines | Discovered new exit (range 10) 2009 | -9/Mines | Entered Materials 2009 | -8/Materials | Evolved 4 slots: Utility x4 2576 | -8/Materials | Build established: Mutant 3225 | -8/Materials | Repaired VSS Leg 3283 | -8/Materials | Discovered new exit (range 10) 3325 | -8/Materials | Identified exit to Factory 3327 | -8/Materials | Entered Factory 3327 | -7/Factory | Evolved 2 slots: Utility x2 4130 | -7/Factory | Discovered new exit (range 11) 4602 | -7/Factory | Lost 4 parts (1p2u1w) 4711 | -7/Factory | Identified exit to Lower Caves 4719 | -7/Factory | Entered Lower Caves 5106 | -7/Lower Caves | Spotted B-75 Beast 6381 | -7/Lower Caves | Discovered new exit (range 6) 6386 | -7/Lower Caves | Identified exit to Lower Caves 6405 | -7/Lower Caves | Build established: Scavenger-Mutant 6468 | -7/Lower Caves | Learned Factory security intel 6580 | -7/Lower Caves | Entered another Lower Caves area 6619 | -7/Lower Caves | Learned Factory stockpile data 6806 | -7/Lower Caves | Lost 5 parts (1n1u3w) 6996 | -7/Lower Caves | Encountered a Warlord checkpoint 7069 | -7/Lower Caves | Learned 4 Factory zone layouts 7315 | -7/Lower Caves | Core integrity fell below 50% 7336 | -7/Lower Caves | Lost 4 parts (1p1n1u1w) 7473 | -7/Lower Caves | Discovered new exit (range 7) 7482 | -7/Lower Caves | Identified exit to Zion 7626 | -7/Lower Caves | Entered Zion 7712 | -7/Zion | Given A8's code to call for help 7728 | -7/Zion | Discovered new exit (range 15) 7911 | -7/Zion | Learned Factory emergency access door positions 7929 | -7/Zion | Gained Derelict followers 7971 | -7/Zion | Received a hallucinogenic algorithm 8013 | -7/Zion | Learned location of 1 exit from Lower Caves 8121 | -7/Zion | Found Prototype Device 8121 | -7/Zion | Identified Mobile Refinery Mk. CCLXVII 8226 | -7/Zion | Learned location of Recycling (-7) 8531 | -7/Zion | Build established: Derelict-Mutant 8924 | -7/Zion | Visited the Megawrench Repair Shop 8924 | -7/Zion | Megawrench repaired 12 parts 9032 | -7/Zion | Identified exit to Proximity Caves 9040 | -7/Zion | Entered Proximity Caves 9040 | -6/Proximity Caves | Accompanied by 4 allies 9558 | -6/Proximity Caves | Discovered new exit (range 6) 9588 | -6/Proximity Caves | Identified exit to Factory 9593 | -6/Proximity Caves | Entered Factory 9593 | -6/Factory | Accompanied by 4 allies 9593 | -6/Factory | Evolved 2 slots: Utility x2 9594 | -6/Factory | Identified exit to Lower Caves 10249 | -6/Factory | Discovered new exit (range 9) 10299 | -6/Factory | Identified exit to Factory 10414 | -6/Factory | Discovered exit to Factory (range 11) 10843 | -6/Factory | Discovered exit to Lower Caves (range 15) 10936 | -6/Factory | Entered another Factory area 10936 | -5/Factory | Evolved 2 slots: Utility x2 10937 | -5/Factory | Identified exit to Extension 11572 | -5/Factory | Build established: Derelict-Skirmisher 12061 | -5/Factory | System corruption reached 10% 12125 | -5/Factory | Lost 7 parts (1p2n1u3w) 12147 | -5/Factory | Discovered new exit (range 22) 12175 | -5/Factory | Identified exit to Factory 12604 | -5/Factory | Lost 3 parts (1p1u1w) 12986 | -5/Factory | Core integrity fell below 50% 13011 | -5/Factory | Core integrity fell below 20% 13015 | -5/Factory | Destroyed by H-66 Slayer with Gauss Rifle Last Messages --------------- 13000_ Dropped Mic. Fission Core. 13002_ K-01 Serf destroyed. 13002_ K-01 Serf collects debris. 13004_ Knocked back. 13005_ K-01 Serf collects debris. 13005_ R-10 Processor collects Prc. Matter Filter. 13007_ Slug penetrates Wall. 13008_ System corrupted: Energy discharge (-15). 13008_ Weight Redist. System destroyed. 13008_ R-10 Processor collects Mic. Fission Core. 13008_ K-01 Serf collects debris. 13011_ K-01 Serf destroyed. 13011_ K-01 Serf collects debris. 13012_ Dropped Med. Storage Unit. 13012_ Slug penetrates Wall. 13013_ Slammed into X-67 Chaingunner. 13013_ K-01 Serf collects debris. 13014_ R-10 Processor collects Recoil Nullifier. 13014_ Slammed into X-67 Chaingunner. 13015_ Penetrated by Slug. Map ----- +----------------------------------------------------+ | # # #??????? | | # #??????? | | # + #??????? | | # # #??????? | | # # #??????? | | # #######" ## # #??????? | | # #??# ##"T## #################??????? | | # #???####### #??????????????????????? | | # #?????????#kk #??????????????????????? | | + % #?????????# #??????????????????????? | | # #?????????# #??????????????????????? | | # #?????????#= #??????????????????????? | | #| *% ###########% A #??????????????????????? | | # !! # # u #??????????????????????? | | #% ! # "" # #??????????????????????? | | #*| # ! "" # #??????????????????????? | | # Y" # #??????????????????????? | | # ""%#!% #??????????????????????? | | # "" #[! #??????????????????????? | | # # #??????????????????????? | | # % + #??????????????????????? | | # # % u#??????????????????????? | | # # H !#??????????????????????? | | ######### # R !#?????+#####???????????? | | ????????# """"""" # x ## #???????????? | | ????????# """"""" # u@x #???????????? | | ????????# """"""" # ??? | | ????????# """"""" # u=%= ??? | | ????????# # k * u u ???? | | ????????########### k ???? | | ??????????????????# k h [ ????? | | ??????????????????# Rh w ###+####????? | | ??????????????????#####+#### ] #???????????? | | ????????????????????????????## ###???????????? | | ?????????????????????????????? #?????????????? | | ??????????????????????????????? #?????????????? | | ??????????????????????????????? #?????????????? | | ???????????????????????????????? #?????????????? | | ???????????????????????????????? #?????????????? | | ????????????????????????????????? #?????????????? | | ????????????????????????????????? ?????????????? | | ?????????????????????????????????? ????????????? | | ?????????????????????????????????? ????????????? | | ?????????????????????????????????????????????????? | | ?????????????????????????????????????????????????? | | ?????????????????????????????????????????????????? | | ?????????????????????????????????????????????????? | | ?????????????????????????????????????????????????? | | ?????????????????????????????????????????????????? | | ?????????????????????????????????????????????????? | +----------------------------------------------------+ Best States ------------- Heat Dissipation 54 Energy Generation 19 Energy Capacity 315 Matter Stores 300 Matter Capacity 300 Sight Range 22 Robot Scan Range 15 Terrain Scan Density 10 ECM Strength 1 Jamming Range 12 Additional Mass Support 9 Armor Coverage 250 Power Shielding 66 Propulsion Shielding 66 Utility Shielding 66 Evasion (%) 55 Targeting Accuracy 16 Target Analysis 9 Recoil Reduction 6 Matter Filtering 50 Salvage Targeting 2 Item Schematics ----------------- None Robot Schematics ------------------ None Fabricated ------------ Nothing Alien Tech Used ----------------- None Achievements -------------- None Challenges ------------ None Game ------ Seed MatterPhysicsInitializer Manual? 0 Play Time 01:14:38 Cumulative 278.1 hours Start 2022.05.21 @ 15:10:50 End 2022.05.21 @ 19:38:25 Sessions 3 Manual Loads 0 Difficulty Rogue Special Mode None Game No. 516 Rogue 361 Adventurer 148 Explorer 7 Win Type - Total 10 Types 8/0/1/1/0/0/0/0/0 Lore% 72 Gallery% 84 Achievement% 66 Wizard Run 0 Options --------- ASCII 0 Keyboard 0 Movement Numpad Keybinds 0 Fullscreen 1 Font 18/SmallcapsGlow Map View 76x50 Tactical HUD 1 Map Filters NONE Filters NONE Steam 1 RUN: e82238b3-8288-4703-972c-43c3229dd14e